fUSD/lending_fUSD_20250103
["ID","MTS","AMOUNT","RATE_DAILY","PERIOD"]
[347499437,1735878655954,-500.0,9.753e-05,2]
[347499438,1735878655968,-500.0,9.753e-05,2]
[347499439,1735878655986,-500.0,9.753e-05,2]
[347499440,1735878656003,-500.0,9.753e-05,2]
[347499441,1735878656016,-500.0,9.753e-05,2]
[347499442,1735878656033,-500.0,9.753e-05,2]
[347499443,1735878656050,-1732.72,9.753e-05,2]
[347499444,1735878656069,-500.0,9.753e-05,2]
[347499445,1735878656085,-1218.7,9.753e-05,2]
[347499446,1735878656103,-500.0,9.753e-05,2]
[347499447,1735878656121,-443.474119,9.753e-05,2]
[347499448,1735878656136,-558.06,9.753e-05,2]
[347499449,1735878656154,-500.0,9.753e-05,2]
[347499450,1735878656168,-500.0,9.753e-05,2]
[347499451,1735878656182,-1897.31,9.753e-05,2]
[347499452,1735878656199,-500.0,9.753e-05,2]
[347499453,1735878656212,-500.0,9.753e-05,2]
[347499454,1735878656228,-1445.45,9.753e-05,2]
[347499455,1735878656243,-500.0,9.753e-05,2]
[347499456,1735878656256,-500.0,9.753e-05,2]
[347499457,1735878656270,-2720.99,9.753e-05,2]
[347499458,1735878656284,-1225.07,9.753e-05,2]
[347499459,1735878656297,-500.0,9.753e-05,2]
[347499460,1735878656311,-1871.65,9.753e-05,2]
[347499461,1735878656326,-500.0,9.753e-05,2]
[347499462,1735878656345,-500.0,9.753e-05,2]
[347499463,1735878656359,-617.39,9.753e-05,2]
[347499464,1735878656372,-500.0,9.753e-05,2]
[347499465,1735878656385,-500.0,9.753e-05,2]
[347499466,1735878656399,-500.0,9.753e-05,2]
[347499467,1735878656413,-500.0,9.753e-05,2]
[347499468,1735878656427,-984.92,9.753e-05,2]
[347499469,1735878656441,-251.72572234,9.753e-05,2]
[347499470,1735878656455,-500.0,9.753e-05,2]
[347499471,1735878656469,-814.14,9.753e-05,2]
[347499472,1735878656482,-2107.39,9.753e-05,2]
[347499473,1735878656496,-500.0,9.753e-05,2]
[347499474,1735878656509,-560.83,9.753e-05,2]
[347499475,1735878656523,-1966.92,9.753e-05,2]
[347499476,1735878656537,-629.14,9.753e-05,2]
[347499477,1735878656551,-1021.25,9.753e-05,2]
[347499478,1735878656564,-3077.15,9.753e-05,2]
[347499479,1735878656579,-649.53,9.753e-05,2]
[347499480,1735878656593,-1015.7,9.753e-05,2]
[347499481,1735878656607,-1079.14,9.753e-05,2]
[347499482,1735878656623,-500.0,9.753e-05,2]
[347499483,1735878656637,-500.0,9.753e-05,2]
[347499484,1735878656654,-2148.99,9.753e-05,2]
[347499485,1735878656670,-500.0,9.753e-05,2]
[347499486,1735878656685,-3043.28,9.753e-05,2]
[347499487,1735878656699,-500.0,9.753e-05,2]
[347499488,1735878656713,-1873.2,9.753e-05,2]
[347499489,1735878656728,-940.61,9.753e-05,2]
[347499490,1735878656743,-500.0,9.753e-05,2]
[347499491,1735878656757,-500.0,9.753e-05,2]
[347499492,1735878656771,-706.93,9.753e-05,2]
[347499493,1735878656786,-500.0,9.753e-05,2]
[347499494,1735878656800,-500.0,9.753e-05,2]
[347499495,1735878656815,-500.0,9.753e-05,2]
[347499496,1735878656829,-631.41,9.753e-05,2]
[347499497,1735878656843,-1190.19,9.753e-05,2]
[347499498,1735878656857,-500.0,9.753e-05,2]
[347499499,1735878656871,-2334.71,9.753e-05,2]
[347499500,1735878656886,-500.0,9.753e-05,2]
[347499501,1735878656900,-832.01,9.753e-05,2]
[347499502,1735878656917,-500.0,9.753e-05,2]
[347499503,1735878656931,-3717.95,9.753e-05,2]
[347499504,1735878656945,-500.0,9.753e-05,2]
[347499505,1735878656958,-500.0,9.753e-05,2]
[347499506,1735878656972,-500.0,9.753e-05,2]
[347499507,1735878656986,-2140.12,9.753e-05,2]
[347499508,1735878657001,-1484.56,9.753e-05,2]
[347499509,1735878657015,-552.18793712,9.753e-05,2]
[347499510,1735878657028,-1756.85,9.753e-05,2]
[347499511,1735878657041,-500.0,9.753e-05,2]
[347499512,1735878657056,-500.0,9.753e-05,2]
[347499513,1735878657070,-500.0,9.753e-05,2]
[347499514,1735878657083,-500.0,9.753e-05,2]
[347499515,1735878657096,-2057.13,9.753e-05,2]
[347499516,1735878657110,-660.16,9.753e-05,2]
[347499517,1735878657124,-500.0,9.753e-05,2]
[347499518,1735878657138,-500.0,9.753e-05,2]
[347499519,1735878657152,-500.0,9.753e-05,2]
[347499520,1735878657166,-500.0,9.753e-05,2]
[347499521,1735878657179,-949.46,9.753e-05,2]
[347499522,1735878657194,-1631.81,9.753e-05,2]
[347499523,1735878657209,-500.0,9.753e-05,2]
[347499524,1735878657223,-500.0,9.753e-05,2]
[347499525,1735878657236,-500.0,9.753e-05,2]
[347499526,1735878657250,-1318.18,9.753e-05,2]
[347499527,1735878657264,-3503.08,9.753e-05,2]
[347499528,1735878657279,-500.0,9.753e-05,2]
[347499529,1735878657292,-1332.08,9.753e-05,2]
[347499530,1735878657309,-3471.34,9.753e-05,2]
[347499531,1735878657323,-2073.72,9.753e-05,2]
[347499532,1735878657338,-500.0,9.753e-05,2]
[347499533,1735878657351,-500.0,9.753e-05,2]
[347499534,1735878657365,-500.0,9.753e-05,2]
[347499535,1735878657380,-2325.63,9.753e-05,2]
[347499536,1735878657394,-547.72,9.753e-05,2]
[347499537,1735878657409,-500.0,9.753e-05,2]
[347499538,1735878657423,-500.0,9.753e-05,2]
[347499539,1735878657438,-500.0,9.753e-05,2]
[347499540,1735878657452,-1053.17,9.753e-05,2]
[347499541,1735878657466,-500.0,9.753e-05,2]
[347499542,1735878657481,-500.0,9.753e-05,2]
[347499543,1735878657495,-1265.15,9.753e-05,2]
[347499544,1735878657508,-500.0,9.753e-05,2]
[347499545,1735878657521,-2501.63,9.753e-05,2]
[347499546,1735878657536,-1269.14,9.753e-05,2]
[347499547,1735878657552,-500.0,9.753e-05,2]
[347499548,1735878657566,-1436.33,9.753e-05,2]
[347499549,1735878657581,-1010.98,9.753e-05,2]
[347499550,1735878657594,-500.0,9.753e-05,2]
[347499551,1735878657608,-500.0,9.753e-05,2]
[347499552,1735878657623,-965.01,9.753e-05,2]
[347499553,1735878657637,-1119.8,9.753e-05,2]
[347499554,1735878657656,-610.97391093,9.753e-05,2]
[347499555,1735878657670,-500.0,9.753e-05,2]
[347499556,1735878657683,-500.0,9.753e-05,2]
[347499557,1735878657698,-500.0,9.753e-05,2]
[347499558,1735878657711,-550.657,9.753e-05,2]
[347499559,1735878657727,-976.53,9.753e-05,2]
[347499560,1735878657741,-500.0,9.753e-05,2]
[347499561,1735878657755,-2525.23,9.753e-05,2]
[347499562,1735878657768,-762.06,9.753e-05,2]
[347499563,1735878657782,-1244.31,9.753e-05,2]
[347499564,1735878657795,-137.78237162,9.753e-05,2]
[347499565,1735878657900,-362.21762838,9.753e-05,2]
[347499566,1735878657915,-500.0,9.753e-05,2]
[347499567,1735878657926,-697.63985602,9.753e-05,2]
[347499568,1735878697936,516.07,8.839e-05,2]
[347499569,1735878795258,250.0,8.785e-05,2]
[347499572,1735878926690,1500.0,7.767e-05,2]
[347499573,1735879067715,150.0,8.185e-05,2]
[347499574,1735879067773,150.0,8.148e-05,2]
[347499575,1735879068155,150.0,8.38e-05,2]
[347499576,1735879106599,1500.0,7.245e-05,2]
[347499577,1735879127745,150.0,7.266e-05,2]
[347499578,1735879128230,150.0,8.705e-05,2]
[347499579,1735879128381,150.0,8.954e-05,2]
[347499580,1735879128530,150.0,7.897e-05,2]
[347499581,1735879128570,150.0,7.193e-05,2]
[347499582,1735879128641,150.0,8.936e-05,2]
[347499583,1735879128705,150.0,7.169e-05,2]
[347499584,1735879166493,1500.0,8.147e-05,2]
[347499585,1735879166578,418.75734377,7.121e-05,2]
[347499586,1735879169538,1299.02429116,6.671e-05,2]
[347499587,1735879226889,1500.0,6.716e-05,2]
[347499588,1735879268505,1721.06,8.219e-05,2]
[347499590,1735879475036,257.94,8.655e-05,2]
[347499591,1735879612508,484.68,8.658e-05,2]
[347499598,1735879826439,1500.0,8.507e-05,2]
[347499604,1735879831800,-150.0,9.282e-05,2]
[347499605,1735879831809,-150.0,9.283e-05,2]
[347499606,1735879831819,-300.0,9.46e-05,2]
[347499607,1735879831828,-1270.35135813,9.461e-05,2]
[347499608,1735879832051,-454.92529219,9.461e-05,2]
[347499609,1735879832154,-2939.52,9.461e-05,2]
[347499610,1735879832216,-5596.11714744,9.461e-05,2]
[347499611,1735879832248,-6039.24515316,9.461e-05,2]
[347499612,1735879832259,-10706.81711968,9.461e-05,2]
[347499673,1735879839678,-145343.0239294,9.461e-05,2]
[347499674,1735879839687,-150.0,9.501e-05,2]
[347499675,1735879839696,-219.541,9.53e-05,2]
[347499676,1735879839706,-664.69,9.53e-05,2]
[347499677,1735879839715,-501.1,9.543e-05,2]
[347499678,1735879839724,-504.25,9.548e-05,2]
[347499679,1735879839733,-6593.106,9.555e-05,2]
[347499680,1735879839742,-498.71,9.556e-05,2]
[347499681,1735879839751,-497.1,9.556e-05,2]
[347499682,1735879839760,-490.37,9.556e-05,2]
[347499683,1735879839770,-505.22,9.556e-05,2]
[347499684,1735879839779,-1077.40191218,9.556e-05,2]
[347499685,1735879839788,-1116.49614249,9.558e-05,2]
[347499686,1735879839798,-150.0,9.56e-05,2]
[347499687,1735879839807,-150.0,9.57e-05,2]
[347499688,1735879839817,-3211.0,9.589e-05,2]
[347499689,1735879839826,-6008.0,9.589e-05,2]
[347499690,1735879839835,-150.0,9.605e-05,2]
[347499691,1735879839845,-500.0,9.649e-05,2]
[347499692,1735879839855,-500.0,9.649e-05,2]
[347499693,1735879839864,-500.0,9.65e-05,2]
[347499694,1735879839874,-8395.78,9.65e-05,2]
[347499695,1735879839883,-8125.9480384,9.65e-05,2]
[347499701,1735879840048,-530.69259837,9.65e-05,2]
[347499710,1735879840358,150.0,8.829e-05,2]
[347499727,1735879845833,-150.0,9.233e-05,2]
[347499728,1735879845843,-769.29,9.649e-05,2]
[347499729,1735879845854,-5145.42936323,9.65e-05,2]
[347499730,1735879845863,-7744.65,9.65e-05,2]
[347499731,1735879845872,-7473.76,9.65e-05,2]
[347499732,1735879845882,-3188.8,9.65e-05,2]
[347499733,1735879845890,-12440.77,9.65e-05,2]
[347499734,1735879845900,-1793.19,9.65e-05,2]
[347499735,1735879845909,-1810.58,9.65e-05,2]
[347499736,1735879845919,-3856.48,9.65e-05,2]
[347499737,1735879845928,-1149.46,9.65e-05,2]
[347499738,1735879845937,-3519.88,9.65e-05,2]
[347499739,1735879845947,-4637.59,9.65e-05,2]
[347499740,1735879845960,-821.51,9.65e-05,2]
[347499741,1735879845970,-500.0,9.65e-05,2]
[347499742,1735879845979,-1040.76,9.65e-05,2]
[347499743,1735879845988,-4207.95660282,9.65e-05,2]
[347499744,1735879846127,-2348.52419718,9.65e-05,2]
[347499745,1735879846137,-500.0,9.651e-05,2]
[347499746,1735879846146,-806.04507388,9.651e-05,2]
[347499747,1735879846156,-1715.27072612,9.651e-05,2]
[347499748,1735879846165,-500.0,9.651e-05,2]
[347499749,1735879846174,-853.38,9.651e-05,2]
[347499750,1735879846183,-336.24927388,9.651e-05,2]
[347499751,1735879846194,-163.75072612,9.651e-05,2]
[347499752,1735879846203,-209.84956382,9.651e-05,2]
[347499753,1735879886610,1500.0,9.007e-05,2]
[347499754,1735879907692,150.0,8.832e-05,2]
[347499755,1735879907756,150.0,8.53e-05,2]
[347499756,1735879908052,150.0,8.954e-05,2]
[347499757,1735879963223,800.0,8.22e-05,2]
[347499758,1735879968626,150.0,8.794e-05,2]
[347499759,1735879968895,150.0,8.295e-05,2]
[347499760,1735879968928,150.0,8.275e-05,2]
[347499761,1735879969190,150.0,8.684e-05,2]
[347499762,1735879969281,150.0,9.008e-05,2]
[347499763,1735879969334,150.0,8.442e-05,2]
[347499764,1735879969396,150.0,8.459e-05,2]
[347499765,1735879969452,150.0,8.394e-05,2]
[347499766,1735879969497,150.0,8.39e-05,2]
[347499767,1735879969540,150.0,8.562e-05,2]
[347499768,1735879970465,150.0,8.673e-05,2]
[347499769,1735879970632,150.0,8.872e-05,2]
[347499770,1735879970675,150.0,8.113e-05,2]
[347499771,1735880045237,250.0,8.643e-05,2]
[347499772,1735880103706,250.0,8.635e-05,2]
[347499773,1735880191246,1000.0,8.63e-05,2]
[347499774,1735880294102,250.0,8.571e-05,2]
[347499775,1735880338691,163.58,8.535e-05,2]
[347499776,1735880367918,224.33,8.535e-05,2]
[347499777,1735880380470,1766.54,0.0002,120]
[347499778,1735880486506,491.06,8.534e-05,2]
[347499779,1735880490496,1691.2,8.219e-05,2]
[347499780,1735880581566,23900.0,8.887e-05,2]
[347499787,1735880970332,2037.0,0.0002,120]
[347499793,1735881031938,-150.0,9.173e-05,2]
[347499794,1735881031948,-850.0,9.203e-05,2]
[347499795,1735881031994,-1050.0,9.203e-05,2]
[347499796,1735881032004,-230.537,9.26e-05,2]
[347499797,1735881032014,-152.36,9.365e-05,2]
[347499798,1735881032024,-783.803,9.464e-05,2]
[347499799,1735881032145,-1070.7,9.464e-05,2]
[347499800,1735881032157,-1078.687,9.464e-05,2]
[347499801,1735881032167,-150.0,9.476e-05,2]
[347499802,1735881032176,-150.0,9.479e-05,2]
[347499803,1735881032185,-150.0,9.479e-05,2]
[347499804,1735881032194,-150.0,9.484e-05,2]
[347499805,1735881032203,-150.0,9.486e-05,2]
[347499806,1735881032212,-150.0,9.487e-05,2]
[347499807,1735881032224,-150.0,9.491e-05,2]
[347499808,1735881032234,-150.0,9.492e-05,2]
[347499809,1735881032244,-150.0,9.499e-05,2]
[347499810,1735881032253,-290.35361368,9.5e-05,2]
[347499811,1735881032263,-300.0,9.5e-05,3]
[347499812,1735881032272,-150.0,9.501e-05,2]
[347499813,1735881032282,-150.0,9.502e-05,2]
[347499814,1735881032292,-150.0,9.503e-05,2]
[347499815,1735881032301,-150.0,9.505e-05,2]
[347499816,1735881032311,-150.0,9.508e-05,2]
[347499817,1735881032320,-150.0,9.509e-05,2]
[347499818,1735881032330,-150.0,9.511e-05,2]
[347499819,1735881032339,-150.0,9.512e-05,2]
[347499820,1735881032348,-150.0,9.513e-05,2]
[347499821,1735881032361,-150.0,9.513e-05,2]
[347499822,1735881032370,-150.0,9.516e-05,2]
[347499823,1735881032379,-300.0,9.516e-05,2]
[347499824,1735881032388,-150.0,9.518e-05,2]
[347499825,1735881032398,-150.0,9.518e-05,2]
[347499826,1735881032407,-150.0,9.521e-05,2]
[347499827,1735881032417,-150.0,9.53e-05,2]
[347499828,1735881032426,-150.0,9.53e-05,2]
[347499829,1735881032437,-150.0,9.535e-05,2]
[347499830,1735881032447,-150.0,9.537e-05,2]
[347499831,1735881032456,-150.0,9.546e-05,2]
[347499832,1735881032466,-150.0,9.547e-05,2]
[347499833,1735881032475,-150.0,9.549e-05,2]
[347499834,1735881032485,-150.0,9.549e-05,2]
[347499835,1735881032495,-357.0568,9.549e-05,2]
[347499836,1735881032504,-4160.18765682,9.549e-05,2]
[347499837,1735881032535,-839.81234318,9.549e-05,2]
[347499838,1735881032545,-924.4281,9.549e-05,2]
[347499839,1735881032554,-1086.50889335,9.55e-05,2]
[347499840,1735881032563,-3783.81128818,9.551e-05,2]
[347499841,1735881032603,-5255.46803272,9.551e-05,2]
[347499842,1735881032614,-1322.22029579,9.551e-05,2]
[347499845,1735881037938,-29425.55008331,9.551e-05,2]
[347499846,1735881037948,-151.66318322,9.554e-05,2]
[347499847,1735881037957,-150.0,9.554e-05,2]
[347499848,1735881037966,-150.0,9.559e-05,2]
[347499849,1735881037976,-150.0,9.572e-05,2]
[347499850,1735881037985,-150.0,9.577e-05,2]
[347499851,1735881037996,-150.0,9.583e-05,2]
[347499852,1735881038006,-150.0,9.583e-05,2]
[347499853,1735881038016,-1500.0,9.583e-05,2]
[347499854,1735881038025,-150.0,9.587e-05,2]
[347499855,1735881038034,-150.0,9.588e-05,2]
[347499856,1735881038044,-150.0,9.589e-05,2]
[347499857,1735881038053,-800.0,9.59e-05,2]
[347499858,1735881038062,-150.0,9.592e-05,2]
[347499859,1735881038072,-150.0,9.597e-05,2]
[347499860,1735881038082,-150.0,9.599e-05,2]
[347499861,1735881038091,-600.0,9.6e-05,3]
[347499862,1735881038100,-491.06,9.601e-05,2]
[347499863,1735881038109,-150.0,9.602e-05,2]
[347499864,1735881038118,-150.0,9.602e-05,2]
[347499865,1735881038127,-150.0,9.606e-05,2]
[347499866,1735881038136,-150.0,9.614e-05,2]
[347499867,1735881038145,-150.0,9.616e-05,2]
[347499868,1735881038155,-150.0,9.621e-05,2]
[347499869,1735881038164,-150.0,9.621e-05,2]
[347499870,1735881038174,-150.0,9.628e-05,2]
[347499871,1735881038183,-150.0,9.629e-05,2]
[347499872,1735881038192,-150.0,9.635e-05,2]
[347499873,1735881038202,-150.0,9.644e-05,2]
[347499874,1735881038211,-5046.59,9.648e-05,2]
[347499875,1735881038220,-4517.35,9.648e-05,2]
[347499876,1735881038229,-8877.88,9.648e-05,2]
[347499877,1735881038239,-3573.06,9.648e-05,2]
[347499878,1735881038247,-3130.84,9.648e-05,2]
[347499879,1735881038257,-9638.01,9.648e-05,2]
[347499880,1735881038265,-4798.07,9.648e-05,2]
[347499881,1735881038274,-742.28,9.648e-05,2]
[347499882,1735881038284,-6682.79,9.648e-05,2]
[347499883,1735881038293,-628.2,9.648e-05,2]
[347499885,1735881038302,-4108.01,9.648e-05,2]
[347499886,1735881038311,-2900.55,9.648e-05,2]
[347499888,1735881038320,-3702.05,9.648e-05,2]
[347499890,1735881038329,-500.0,9.648e-05,2]
[347499892,1735881038338,-5676.95,9.648e-05,2]
[347499893,1735881038347,-5777.9,9.648e-05,2]
[347499895,1735881038361,-1639.63,9.648e-05,2]
[347499896,1735881038370,-2736.94,9.648e-05,2]
[347499897,1735881038379,-4693.47,9.648e-05,2]
[347499898,1735881038388,-9639.28,9.648e-05,2]
[347499899,1735881038398,-13800.13,9.648e-05,2]
[347499900,1735881038408,-2848.08,9.648e-05,2]
[347499901,1735881038419,-7693.67,9.648e-05,2]
[347499902,1735881038429,-5196.58,9.648e-05,2]
[347499903,1735881038444,-13378.58405796,9.648e-05,2]
[347499904,1735881038525,-1142.11724043,9.648e-05,2]
[347499905,1735881038564,-545.10674681,9.648e-05,2]
[347499906,1735881038575,-377.66769828,9.648e-05,2]
[347499907,1735881038587,-1021.42425652,9.648e-05,2]
[347499908,1735881038596,-7632.77,9.648e-05,2]
[347499909,1735881038606,-10514.9,9.648e-05,2]
[347499910,1735881038615,-817.44,9.648e-05,2]
[347499911,1735881038624,-4229.33,9.648e-05,2]
[347499912,1735881038634,-1792.22,9.648e-05,2]
[347499913,1735881038643,-500.0,9.648e-05,2]
[347499914,1735881038652,-152.483359,9.648e-05,2]
[347499915,1735881038661,-1657.67701454,9.648e-05,2]
[347499916,1735881038757,-1932.49298546,9.648e-05,2]
[347499917,1735881038766,-1143.22,9.648e-05,2]
[347499918,1735881038774,-500.0,9.648e-05,2]
[347499919,1735881038783,-500.0,9.648e-05,2]
[347499920,1735881038792,-2758.74950687,9.648e-05,2]
[347499923,1735881042995,-1945.57049313,9.648e-05,2]
[347499924,1735881043005,-758.07,9.648e-05,2]
[347499925,1735881043014,-1801.27,9.648e-05,2]
[347499926,1735881043023,-4854.43950687,9.648e-05,2]
[347499927,1735881043035,-688.49999868,9.648e-05,2]
[347499928,1735881043100,-2686.27049445,9.648e-05,2]
[347499929,1735881043109,-1857.67646332,9.648e-05,2]
[347499930,1735881043210,-704.65353668,9.648e-05,2]
[347499931,1735881043219,-1596.2,9.648e-05,2]
[347499932,1735881043228,-2537.81430332,9.648e-05,2]
[347499933,1735881043270,-5575.80569668,9.648e-05,2]
[347499934,1735881043280,-1092.81573922,9.648e-05,2]
[347499935,1735881043291,-351.99426078,9.648e-05,2]
[347499936,1735881043299,-2225.31542332,9.648e-05,2]
[347499938,1735881045954,-1649.42457668,9.648e-05,2]
[347499939,1735881045963,-13.96703932,9.648e-05,2]
[347499940,1735881046116,-831.49581754,9.648e-05,2]
[347499941,1735881046174,-5377.46602581,9.648e-05,2]
[347499942,1735881046229,-2285.04111733,9.648e-05,2]
[347499943,1735881046239,-534.92,9.648e-05,2]
[347499944,1735881046248,-787.48,9.649e-05,2]
[347499945,1735881046258,-500.0,9.649e-05,2]
[347499946,1735881046268,-500.0,9.649e-05,2]
[347499947,1735881046277,-500.0,9.649e-05,2]
[347499948,1735881046287,-500.0,9.649e-05,2]
[347499949,1735881046296,-500.0,9.649e-05,2]
[347499950,1735881046305,-229.93006413,9.649e-05,2]
[347499951,1735881046315,-1230.02,9.649e-05,2]
[347499952,1735881046324,-500.0,9.649e-05,2]
[347499953,1735881046334,-500.0,9.649e-05,2]
[347499954,1735881046344,-1860.46,9.649e-05,2]
[347499955,1735881046359,-523.37,9.649e-05,2]
[347499956,1735881046377,-500.0,9.649e-05,2]
[347499957,1735881046386,-500.0,9.649e-05,2]
[347499958,1735881046395,-500.0,9.649e-05,2]
[347499959,1735881046405,-500.0,9.649e-05,2]
[347499960,1735881046414,-500.0,9.649e-05,2]
[347499961,1735881046424,-500.0,9.649e-05,2]
[347499962,1735881046433,-500.0,9.649e-05,2]
[347499963,1735881046443,-500.0,9.649e-05,2]
[347499964,1735881046452,-500.0,9.649e-05,2]
[347499965,1735881046462,-500.0,9.649e-05,2]
[347499966,1735881046472,-500.0,9.649e-05,2]
[347499967,1735881046481,-500.0,9.649e-05,2]
[347499968,1735881046490,-500.0,9.649e-05,2]
[347499969,1735881046500,-500.0,9.649e-05,2]
[347499970,1735881046509,-500.0,9.649e-05,2]
[347499971,1735881046518,-636.28,9.649e-05,2]
[347499972,1735881046528,-500.0,9.649e-05,2]
[347499973,1735881046537,-894.53,9.649e-05,2]
[347499974,1735881046548,-555.04,9.649e-05,2]
[347499975,1735881046557,-3499.43,9.649e-05,2]
[347499976,1735881046566,-500.0,9.649e-05,2]
[347499977,1735881046574,-500.0,9.649e-05,2]
[347499978,1735881046583,-281.20915337,9.649e-05,2]
[347499979,1735881046592,-1346.18,9.649e-05,2]
[347499980,1735881046601,-500.0,9.649e-05,2]
[347499981,1735881046611,-500.0,9.649e-05,2]
[347499982,1735881046620,-500.0,9.649e-05,2]
[347499983,1735881046629,-396.70275727,9.649e-05,2]
[347499984,1735881046638,-500.0,9.649e-05,2]
[347499985,1735881046648,-1044.49,9.649e-05,2]
[347499986,1735881046657,-500.0,9.649e-05,2]
[347499987,1735881046666,-623.16693621,9.649e-05,2]
[347499988,1735881046676,-500.0,9.649e-05,2]
[347499989,1735881046686,-500.0,9.649e-05,2]
[347499990,1735881046695,-565.64,9.649e-05,2]
[347499991,1735881046705,-1313.33,9.649e-05,2]
[347499992,1735881046715,-2832.58,9.649e-05,2]
[347499993,1735881046723,-1007.43,9.649e-05,2]
[347499994,1735881046732,-500.0,9.649e-05,2]
[347499995,1735881046742,-326.81550815,9.649e-05,2]
[347499996,1735881046750,-500.0,9.649e-05,2]
[347499997,1735881046759,-516.51,9.649e-05,2]
[347499998,1735881046768,-1250.72,9.649e-05,2]
[347499999,1735881046777,-914.44,9.649e-05,2]
[347500000,1735881046786,-500.0,9.649e-05,2]
[347500001,1735881046796,-500.0,9.649e-05,2]
[347500002,1735881046805,-1462.58,9.649e-05,2]
[347500003,1735881046814,-2897.39,9.649e-05,2]
[347500004,1735881046824,-500.0,9.649e-05,2]
[347500005,1735881046833,-500.0,9.649e-05,2]
[347500006,1735881046842,-500.0,9.649e-05,2]
[347500007,1735881046851,-500.0,9.649e-05,2]
[347500008,1735881046861,-500.0,9.649e-05,2]
[347500009,1735881046870,-500.0,9.649e-05,2]
[347500010,1735881046880,-1406.33,9.649e-05,2]
[347500011,1735881046890,-500.0,9.649e-05,2]
[347500012,1735881046899,-500.0,9.649e-05,2]
[347500013,1735881046908,-1696.18,9.649e-05,2]
[347500014,1735881046917,-500.0,9.649e-05,2]
[347500015,1735881046927,-500.0,9.649e-05,2]
[347500016,1735881046936,-500.0,9.649e-05,2]
[347500017,1735881046945,-554.7,9.649e-05,2]
[347500018,1735881046954,-500.0,9.649e-05,2]
[347500019,1735881046963,-500.0,9.649e-05,2]
[347500020,1735881046973,-903.56,9.649e-05,2]
[347500021,1735881046982,-406.54446354,9.649e-05,2]
[347500022,1735881149843,169.85,8.921e-05,2]
[347500023,1735881182729,1000.0,8.659e-05,2]
[347500024,1735881264455,297.17,8.887e-05,2]
[347500025,1735881326452,167.24,8.887e-05,2]
[347500026,1735881370677,250.0,8.887e-05,2]
[347500027,1735881414047,507.01,8.609e-05,2]
[347500028,1735881463165,1660.0,8.219e-05,2]
[347500029,1735881620417,23900.0,8.583e-05,2]
[347500030,1735881789721,6666.010314,0.0002,120]
[347500031,1735881791506,6666.010314,0.0002,120]
[347500032,1735881805604,6372.010314,0.0002,120]
[347500033,1735881889518,500.0,0.0002,120]
[347500034,1735881908929,150.0,8.63e-05,2]
[347500035,1735881909310,150.0,8.95e-05,2]
[347500036,1735881912059,150.0,8.63e-05,2]
[347500037,1735881919330,150.0,8.63e-05,2]
[347500038,1735881919619,150.0,8.95e-05,2]
[347500041,1735881986829,150.0,8.95e-05,3]
[347500042,1735882007576,151.21,8.95e-05,3]
[347500043,1735882031439,1000.0,8.545e-05,2]
[347500046,1735882103849,297.17,8.543e-05,2]
[347500070,1735882232408,-700.0,9.203e-05,2]
[347500071,1735882232417,-73.864,9.203e-05,2]
[347500072,1735882232580,-1005.00961891,9.203e-05,2]
[347500086,1735882238293,-721.12638109,9.203e-05,2]
[347500087,1735882238303,-241.204,9.26e-05,2]
[347500088,1735882238313,-150.0,9.269e-05,2]
[347500089,1735882238323,-150.0,9.269e-05,2]
[347500090,1735882238333,-150.0,9.375e-05,2]
[347500091,1735882238343,-200.0,9.4e-05,3]
[347500092,1735882238352,-150.0,9.41e-05,2]
[347500093,1735882238361,-150.0,9.483e-05,2]
[347500094,1735882238371,-150.0,9.484e-05,2]
[347500095,1735882238380,-150.0,9.488e-05,2]
[347500096,1735882238390,-150.0,9.49e-05,2]
[347500097,1735882238399,-150.0,9.491e-05,2]
[347500098,1735882238408,-150.0,9.492e-05,2]
[347500099,1735882238418,-150.0,9.493e-05,2]
[347500100,1735882238427,-5000.0,9.497e-05,2]